[Event "Early-Titled-Tuesday-Blitz-January-30-2024"]
[Site "Chess.com"]
[Date "2024.01.30"]
[Round "5"]
[White "Cheer_Down"]
[Black "Aslanov_Umid"]
[Result "0-1"]
[WhiteElo "2461"]
[BlackElo "2654"]
[TimeControl "180+1"]
[EndTime "8:58:43 PST"]
[Termination "Aslanov_Umid won by resignation"]

1. e4 {[%clk 0:03:00.9]} 1... c5 {[%clk 0:02:59.1]} 2. Nf3 {[%clk 0:02:59.9]}
2... d6 {[%clk 0:02:59.5]} 3. d4 {[%clk 0:02:59.3]} 3... cxd4 {[%clk 0:03:00.4]}
4. Nxd4 {[%clk 0:02:59.6]} 4... Nf6 {[%clk 0:03:01]} 5. Nc3 {[%clk 0:02:59.4]}
5... a6 {[%clk 0:03:01.7]} 6. Rg1 {[%clk 0:02:59.3]} 6... b5 {[%clk 0:03:00.6]}
7. g4 {[%clk 0:02:57.9]} 7... Bb7 {[%clk 0:02:58.4]} 8. g5 {[%clk 0:02:58]} 8...
Nxe4 {[%clk 0:02:58.6]} 9. Nxe4 {[%clk 0:02:57.6]} 9... Bxe4 {[%clk 0:02:59.5]}
10. Qe2 {[%clk 0:02:56.1]} 10... d5 {[%clk 0:02:53.9]} 11. f3 {[%clk 0:02:41]}
11... Bg6 {[%clk 0:02:52.8]} 12. f4 {[%clk 0:02:25.7]} 12... Be4 {[%clk
0:02:52.3]} 13. Bg2 {[%clk 0:02:25.7]} 13... Bxg2 {[%clk 0:02:46.6]} 14. Rxg2
{[%clk 0:02:25.5]} 14... Qc7 {[%clk 0:02:25.9]} 15. a4 {[%clk 0:01:53.7]} 15...
b4 {[%clk 0:01:56]} 16. Bd2 {[%clk 0:01:51]} 16... e6 {[%clk 0:01:54.6]} 17. f5
{[%clk 0:01:46]} 17... e5 {[%clk 0:01:50.4]} 18. g6 {[%clk 0:01:45.8]} 18...
hxg6 {[%clk 0:01:35.8]} 19. fxg6 {[%clk 0:01:42.3]} 19... Rh4 {[%clk 0:01:36.1]}
20. gxf7+ {[%clk 0:01:35]} 20... Kd7 {[%clk 0:01:20.8]} 21. Rg4 {[%clk 0:01:24]}
21... Nc6 {[%clk 0:00:56.8]} 22. Nxc6 {[%clk 0:01:17.4]} 22... Rxg4 {[%clk
0:00:56.9]} 23. Qxg4+ {[%clk 0:01:02.9]} 23... Kxc6 {[%clk 0:00:56.8]} 24. Bxb4
{[%clk 0:00:55.5]} 24... Qxf7 {[%clk 0:00:52.7]} 25. Bd2 {[%clk 0:00:37.9]}
25... Rb8 {[%clk 0:00:38.5]} 26. O-O-O {[%clk 0:00:35.9]} 26... d4 {[%clk
0:00:31.6]} 27. Kb1 {[%clk 0:00:30.7]} 27... Ba3 {[%clk 0:00:25.6]} 28. Bc1
{[%clk 0:00:30.2]} 28... Bb4 {[%clk 0:00:16.3]} 29. Rg1 {[%clk 0:00:26.3]} 29...
Rb7 {[%clk 0:00:16.9]} 30. Qe4+ {[%clk 0:00:25.4]} 30... Qd5 {[%clk 0:00:17.4]}
31. Rg6+ {[%clk 0:00:25.4]} 31... Bd6 {[%clk 0:00:18]} 32. Qf5 {[%clk
0:00:21.8]} 32... e4 {[%clk 0:00:16.3]} 33. Rxd6+ {[%clk 0:00:17.7]} 33... Kxd6
{[%clk 0:00:14.8]} 34. Bf4+ {[%clk 0:00:17.3]} 34... Kc5 {[%clk 0:00:12.3]} 35.
Qc8+ {[%clk 0:00:15.6]} 35... Qc6 {[%clk 0:00:13]} 36. Qf8+ {[%clk 0:00:13.4]}
36... Kb6 {[%clk 0:00:12]} 37. Qb4+ {[%clk 0:00:10.2]} 37... Ka7 {[%clk
0:00:11.2]} 38. Qxd4+ {[%clk 0:00:10.3]} 38... Qb6 {[%clk 0:00:11.9]} 39. Qxb6+
{[%clk 0:00:07.9]} 39... Kxb6 {[%clk 0:00:12.8]} 40. b4 {[%clk 0:00:07.6]} 40...
a5 {[%clk 0:00:12.8]} 41. b5 {[%clk 0:00:07]} 41... Kc5 {[%clk 0:00:13.1]} 42.
Kb2 {[%clk 0:00:06.4]} 42... Kb4 {[%clk 0:00:13.7]} 43. Be3 {[%clk 0:00:05]}
43... Kxa4 {[%clk 0:00:13.9]} 44. b6 {[%clk 0:00:05.3]} 44... Kb4 {[%clk
0:00:13.7]} 45. c3+ {[%clk 0:00:05.4]} 45... Kc4 {[%clk 0:00:13.9]} 46. Ka3
{[%clk 0:00:05.2]} 46... Kxc3 {[%clk 0:00:14]} 47. Ka4 {[%clk 0:00:05.7]} 47...
Kd3 {[%clk 0:00:14.7]} 48. Bc5 {[%clk 0:00:06.1]} 48... e3 {[%clk 0:00:15.2]}
49. Kxa5 {[%clk 0:00:06.7]} 49... e2 {[%clk 0:00:15.3]} 50. Bb4 {[%clk
0:00:07.2]} 50... Kc4 {[%clk 0:00:13.4]} 51. Be1 {[%clk 0:00:06.2]} 51... Kc5
{[%clk 0:00:14.1]} 52. Bf2+ {[%clk 0:00:06.3]} 52... Kc6 {[%clk 0:00:14.8]} 53.
Ka6 {[%clk 0:00:06.6]} 53... Rxb6+ {[%clk 0:00:15.5]} 54. Bxb6 {[%clk
0:00:06.3]} 54... e1=Q {[%clk 0:00:15.6]} 0-1

[Event "Early-Titled-Tuesday-Blitz-January-30-2024"]
[Site "Chess.com"]
[Date "2024.01.30"]
[Round "5"]
[White "Predator0608"]
[Black "GrotBchess"]
[Result "0-1"]
[WhiteElo "2470"]
[BlackElo "2309"]
[TimeControl "180+1"]
[EndTime "8:58:43 PST"]
[Termination "GrotBchess won on time"]

1. f4 {[%clk 0:02:42.9]} 1... d6 {[%clk 0:02:56.5]} 2. Nf3 {[%clk 0:02:42.6]}
2... Nd7 {[%clk 0:02:54.8]} 3. g3 {[%clk 0:02:41.1]} 3... e5 {[%clk 0:02:54.7]}
4. d3 {[%clk 0:02:37.8]} 4... Ngf6 {[%clk 0:02:53.6]} 5. Bg2 {[%clk 0:02:37.5]}
5... c6 {[%clk 0:02:51.4]} 6. O-O {[%clk 0:02:36.7]} 6... Qb6+ {[%clk
0:02:43.5]} 7. Kh1 {[%clk 0:02:33.5]} 7... Ng4 {[%clk 0:02:42.7]} 8. Qe1 {[%clk
0:02:31.1]} 8... Ne3 {[%clk 0:02:42.1]} 9. Bxe3 {[%clk 0:02:28.9]} 9... Qxe3
{[%clk 0:02:43]} 10. Nbd2 {[%clk 0:02:23.3]} 10... exf4 {[%clk 0:02:34.2]} 11.
Nc4 {[%clk 0:02:19.8]} 11... Qe6 {[%clk 0:02:30.4]} 12. Ng5 {[%clk 0:02:16.9]}
12... Qh6 {[%clk 0:02:20.8]} 13. gxf4 {[%clk 0:02:13.7]} 13... d5 {[%clk
0:02:18.5]} 14. Ne3 {[%clk 0:02:12.2]} 14... Bc5 {[%clk 0:02:01.8]} 15. Nf5
{[%clk 0:02:10]} 15... Qf6 {[%clk 0:01:57.8]} 16. e4 {[%clk 0:02:10.3]} 16...
O-O {[%clk 0:01:50.2]} 17. Ng3 {[%clk 0:01:46.5]} 17... h6 {[%clk 0:01:41.8]}
18. Nf3 {[%clk 0:01:35.6]} 18... Qxf4 {[%clk 0:01:27.3]} 19. d4 {[%clk
0:01:21.4]} 19... Bb6 {[%clk 0:01:24.3]} 20. c3 {[%clk 0:00:58.8]} 20... Qg4
{[%clk 0:01:05.3]} 21. e5 {[%clk 0:00:51.6]} 21... Bd8 {[%clk 0:00:43.6]} 22.
Rg1 {[%clk 0:00:35.7]} 22... Nb6 {[%clk 0:00:33.3]} 23. Qf2 {[%clk 0:00:26.3]}
23... Nc4 {[%clk 0:00:21.1]} 24. h3 {[%clk 0:00:23.9]} 24... Qe6 {[%clk
0:00:20.2]} 25. Bf1 {[%clk 0:00:24.3]} 25... Kh8 {[%clk 0:00:18.7]} 26. Nh5
{[%clk 0:00:22]} 26... g6 {[%clk 0:00:18.3]} 27. Nf4 {[%clk 0:00:21.9]} 27...
Qf5 {[%clk 0:00:18.4]} 28. Qg3 {[%clk 0:00:20.2]} 28... g5 {[%clk 0:00:16.2]}
29. Ne2 {[%clk 0:00:16.8]} 29... Ne3 {[%clk 0:00:15.9]} 30. Bg2 {[%clk
0:00:16.7]} 30... Nxg2 {[%clk 0:00:15.8]} 31. Kxg2 {[%clk 0:00:17.6]} 31... Rg8
{[%clk 0:00:14.6]} 32. Raf1 {[%clk 0:00:17.8]} 32... g4 {[%clk 0:00:14.8]} 33.
Nh4 {[%clk 0:00:17.7]} 33... gxh3+ {[%clk 0:00:14.4]} 34. Kh2 {[%clk 0:00:17.8]}
34... Rxg3 {[%clk 0:00:14.4]} 35. Nxf5 {[%clk 0:00:18.1]} 35... Rxg1 {[%clk
0:00:14.1]} 36. Nxg1 {[%clk 0:00:18.9]} 36... Bxf5 {[%clk 0:00:14.2]} 37. Rxf5
{[%clk 0:00:18.3]} 37... Kg7 {[%clk 0:00:14.3]} 38. Nxh3 {[%clk 0:00:18.5]}
38... Kg6 {[%clk 0:00:14.2]} 39. Rf2 {[%clk 0:00:17.3]} 39... Bg5 {[%clk
0:00:14.7]} 40. Kg3 {[%clk 0:00:16.7]} 40... Re8 {[%clk 0:00:14.4]} 41. Kg4
{[%clk 0:00:15.7]} 41... Re6 {[%clk 0:00:14.3]} 42. Rg2 {[%clk 0:00:13]} 42...
f5+ {[%clk 0:00:14.2]} 43. Kf3 {[%clk 0:00:12]} 43... Re7 {[%clk 0:00:12.9]} 44.
Nf4+ {[%clk 0:00:11.8]} 44... Kh7 {[%clk 0:00:12.8]} 45. Rh2 {[%clk 0:00:12.4]}
45... Kg7 {[%clk 0:00:10.2]} 46. Nh5+ {[%clk 0:00:12.2]} 46... Kg6 {[%clk
0:00:09.9]} 47. Ng3 {[%clk 0:00:13]} 47... f4 {[%clk 0:00:09.5]} 48. Ne2 {[%clk
0:00:13]} 48... Rf7 {[%clk 0:00:09.7]} 0-1

[Event "Early-Titled-Tuesday-Blitz-January-30-2024"]
[Site "Chess.com"]
[Date "2024.01.30"]
[Round "5"]
[White "Chesstiger64"]
[Black "ljuks68"]
[Result "0-1"]
[WhiteElo "2210"]
[BlackElo "2429"]
[TimeControl "180+1"]
[EndTime "8:58:43 PST"]
[Termination "ljuks68 won by checkmate"]

1. d4 {[%clk 0:03:00.9]} 1... d5 {[%clk 0:02:59.5]} 2. Nf3 {[%clk 0:03:00.7]}
2... Nf6 {[%clk 0:02:59.5]} 3. e3 {[%clk 0:03:00.4]} 3... c5 {[%clk 0:02:59.6]}
4. c3 {[%clk 0:02:59.5]} 4... Nc6 {[%clk 0:02:59.9]} 5. Bd3 {[%clk 0:02:58.3]}
5... Bg4 {[%clk 0:02:59.5]} 6. Nbd2 {[%clk 0:02:57.7]} 6... e6 {[%clk
0:02:57.1]} 7. O-O {[%clk 0:02:57.1]} 7... Bd6 {[%clk 0:02:57.2]} 8. dxc5 {[%clk
0:02:54]} 8... Bxc5 {[%clk 0:02:56.9]} 9. e4 {[%clk 0:02:54.5]} 9... d4 {[%clk
0:02:52.6]} 10. Nb3 {[%clk 0:02:42.1]} 10... Bb6 {[%clk 0:02:47.5]} 11. cxd4
{[%clk 0:02:38.9]} 11... Bxf3 {[%clk 0:02:40.2]} 12. Qxf3 {[%clk 0:02:36.4]}
12... Nxd4 {[%clk 0:02:37.1]} 13. Nxd4 {[%clk 0:02:35.4]} 13... Bxd4 {[%clk
0:02:37.1]} 14. Bb5+ {[%clk 0:02:32.4]} 14... Ke7 {[%clk 0:02:32.3]} 15. Bg5
{[%clk 0:02:27.8]} 15... Qb6 {[%clk 0:02:30.5]} 16. Rfd1 {[%clk 0:01:56.5]}
16... e5 {[%clk 0:02:02.2]} 17. Bc4 {[%clk 0:01:40.2]} 17... Rhd8 {[%clk
0:01:51.9]} 18. Rab1 {[%clk 0:01:26.6]} 18... Rac8 {[%clk 0:01:50.1]} 19. b3
{[%clk 0:01:26.4]} 19... Rd6 {[%clk 0:01:25.9]} 20. Be3 {[%clk 0:01:13.9]} 20...
Rcd8 {[%clk 0:01:15.7]} 21. Bxd4 {[%clk 0:01:13.2]} 21... Rxd4 {[%clk 0:01:16]}
22. Rxd4 {[%clk 0:01:10.8]} 22... Qxd4 {[%clk 0:01:15.7]} 23. Re1 {[%clk
0:01:04.9]} 23... a6 {[%clk 0:01:08.3]} 24. g4 {[%clk 0:00:59.7]} 24... Qd2
{[%clk 0:00:38.9]} 25. Re2 {[%clk 0:00:56.7]} 25... Qg5 {[%clk 0:00:23.2]} 26.
h3 {[%clk 0:00:46.6]} 26... h5 {[%clk 0:00:23.1]} 27. Qf5 {[%clk 0:00:46.8]}
27... Qxf5 {[%clk 0:00:18.6]} 28. gxf5 {[%clk 0:00:47.4]} 28... Rd4 {[%clk
0:00:16.2]} 29. f3 {[%clk 0:00:46.5]} 29... b5 {[%clk 0:00:14]} 30. Bd5 {[%clk
0:00:41.3]} 30... Nxd5 {[%clk 0:00:14.2]} 31. exd5 {[%clk 0:00:41.2]} 31... Rxd5
{[%clk 0:00:14.9]} 32. Kf2 {[%clk 0:00:41.1]} 32... Kf6 {[%clk 0:00:15.3]} 33.
Kg3 {[%clk 0:00:39.3]} 33... Kxf5 {[%clk 0:00:14.5]} 34. h4 {[%clk 0:00:37.6]}
34... f6 {[%clk 0:00:12.9]} 35. Kf2 {[%clk 0:00:36.5]} 35... Rd4 {[%clk
0:00:12.6]} 36. Kg3 {[%clk 0:00:35.9]} 36... g5 {[%clk 0:00:13]} 37. hxg5 {[%clk
0:00:32.2]} 37... fxg5 {[%clk 0:00:12.8]} 38. Rc2 {[%clk 0:00:31.9]} 38... Rd3
{[%clk 0:00:11.9]} 39. Kf2 {[%clk 0:00:27.6]} 39... Kf4 {[%clk 0:00:10.4]} 40.
Re2 {[%clk 0:00:24.2]} 40... h4 {[%clk 0:00:08]} 41. Re4+ {[%clk 0:00:23.8]}
41... Kf5 {[%clk 0:00:08.4]} 42. Kg2 {[%clk 0:00:23]} 42... Rd2+ {[%clk
0:00:07.8]} 43. Kh3 {[%clk 0:00:23.1]} 43... Rxa2 {[%clk 0:00:07]} 44. Rb4
{[%clk 0:00:22.9]} 44... Ra3 {[%clk 0:00:06.5]} 45. Kg2 {[%clk 0:00:22]} 45...
Ra2+ {[%clk 0:00:05.6]} 46. Kg1 {[%clk 0:00:21]} 46... Rb2 {[%clk 0:00:06.1]}
47. Kf1 {[%clk 0:00:21]} 47... Ke6 {[%clk 0:00:05.5]} 48. Kg1 {[%clk 0:00:20.3]}
48... Kd5 {[%clk 0:00:05.5]} 49. Kf1 {[%clk 0:00:20.2]} 49... Kc5 {[%clk
0:00:05.7]} 50. Re4 {[%clk 0:00:20.7]} 50... Rxb3 {[%clk 0:00:06]} 51. Rxe5+
{[%clk 0:00:21]} 51... Kc4 {[%clk 0:00:06.2]} 52. Ke2 {[%clk 0:00:18.8]} 52...
Rb2+ {[%clk 0:00:05.2]} 53. Ke3 {[%clk 0:00:18.6]} 53... h3 {[%clk 0:00:04.8]}
54. Rxg5 {[%clk 0:00:18.5]} 54... h2 {[%clk 0:00:05.5]} 55. Rh5 {[%clk
0:00:18.9]} 55... a5 {[%clk 0:00:05.9]} 56. f4 {[%clk 0:00:19.3]} 56... a4
{[%clk 0:00:05.6]} 57. f5 {[%clk 0:00:19.6]} 57... a3 {[%clk 0:00:06.1]} 58. Rh8
{[%clk 0:00:19.3]} 58... a2 {[%clk 0:00:05.7]} 59. Ra8 {[%clk 0:00:18.7]} 59...
h1=Q {[%clk 0:00:05.6]} 60. f6 {[%clk 0:00:19.2]} 60... Qe1+ {[%clk 0:00:05.8]}
61. Kf4 {[%clk 0:00:19]} 61... Rf2+ {[%clk 0:00:06.1]} 62. Kg5 {[%clk
0:00:19.6]} 62... Qg1+ {[%clk 0:00:06.4]} 63. Kh6 {[%clk 0:00:20.1]} 63... Rh2#
{[%clk 0:00:06.7]} 0-1

[Event "Early-Titled-Tuesday-Blitz-January-30-2024"]
[Site "Chess.com"]
[Date "2024.01.30"]
[Round "5"]
[White "lilleper1"]
[Black "Duhless"]
[Result "1/2-1/2"]
[WhiteElo "2918"]
[BlackElo "3093"]
[TimeControl "180+1"]
[EndTime "8:58:45 PST"]
[Termination "Game drawn - insufficient material"]

1. e4 {[%clk 0:03:00.9]} 1... c5 {[%clk 0:03:00.1]} 2. Nf3 {[%clk 0:03:00.8]}
2... d6 {[%clk 0:03:00.2]} 3. d4 {[%clk 0:02:59.2]} 3... cxd4 {[%clk 0:03:01.1]}
4. Nxd4 {[%clk 0:03:00]} 4... Nf6 {[%clk 0:03:01.3]} 5. Nc3 {[%clk 0:03:00.2]}
5... Nc6 {[%clk 0:03:01.9]} 6. f3 {[%clk 0:02:57.5]} 6... e5 {[%clk 0:03:01.3]}
7. Nb3 {[%clk 0:02:56.9]} 7... Be7 {[%clk 0:03:01.6]} 8. Be3 {[%clk 0:02:55.8]}
8... O-O {[%clk 0:03:01.7]} 9. Qd2 {[%clk 0:02:55.3]} 9... a5 {[%clk 0:03:01.7]}
10. Bb5 {[%clk 0:02:52.1]} 10... Be6 {[%clk 0:03:01.9]} 11. O-O {[%clk
0:02:39.3]} 11... d5 {[%clk 0:02:59]} 12. exd5 {[%clk 0:02:39.2]} 12... Nxd5
{[%clk 0:02:59.9]} 13. Nxd5 {[%clk 0:02:38]} 13... Qxd5 {[%clk 0:03:00.8]} 14.
Qxd5 {[%clk 0:02:35.1]} 14... Bxd5 {[%clk 0:03:01.7]} 15. Rfd1 {[%clk
0:02:34.3]} 15... Nb4 {[%clk 0:03:01.7]} 16. Rd2 {[%clk 0:02:21.1]} 16... a4
{[%clk 0:02:58.9]} 17. Nc5 {[%clk 0:02:13.6]} 17... a3 {[%clk 0:02:39.3]} 18. c3
{[%clk 0:02:02.4]} 18... axb2 {[%clk 0:02:35.8]} 19. Rxb2 {[%clk 0:02:02.1]}
19... Nxa2 {[%clk 0:02:08.9]} 20. c4 {[%clk 0:01:41.9]} 20... Nc3 {[%clk
0:02:08.4]} 21. Rxa8 {[%clk 0:01:35.6]} 21... Rxa8 {[%clk 0:02:07.1]} 22. cxd5
{[%clk 0:01:28.3]} 22... Nd1 {[%clk 0:01:57.6]} 23. d6 {[%clk 0:01:06.7]} 23...
Bxd6 {[%clk 0:01:41.7]} 24. Rd2 {[%clk 0:01:03.9]} 24... Nxe3 {[%clk 0:01:34.5]}
25. Rxd6 {[%clk 0:01:02.5]} 25... h6 {[%clk 0:01:34.7]} 26. Bd3 {[%clk 0:00:56]}
26... f5 {[%clk 0:01:05.5]} 27. Nxb7 {[%clk 0:00:42.4]} 27... Ra1+ {[%clk
0:01:03.9]} 28. Kf2 {[%clk 0:00:41.9]} 28... f4 {[%clk 0:01:04.8]} 29. Ra6
{[%clk 0:00:31.4]} 29... Rd1 {[%clk 0:00:38.6]} 30. Be2 {[%clk 0:00:30.9]} 30...
Rd2 {[%clk 0:00:34.6]} 31. Nc5 {[%clk 0:00:28.1]} 31... Nxg2 {[%clk 0:00:26.4]}
32. Ne4 {[%clk 0:00:22]} 32... Rb2 {[%clk 0:00:26.1]} 33. Kxg2 {[%clk
0:00:20.6]} 33... Rxe2+ {[%clk 0:00:25.8]} 34. Kg1 {[%clk 0:00:21.1]} 34... Kf7
{[%clk 0:00:23.1]} 35. Ra7+ {[%clk 0:00:21.6]} 35... Kg6 {[%clk 0:00:21.7]} 36.
Re7 {[%clk 0:00:21.7]} 36... Kh5 {[%clk 0:00:06.7]} 37. Rxe5+ {[%clk 0:00:20.4]}
37... Kh4 {[%clk 0:00:06.5]} 38. Rd5 {[%clk 0:00:19.5]} 38... g5 {[%clk
0:00:03]} 39. Rd2 {[%clk 0:00:18.3]} 39... Re3 {[%clk 0:00:03.4]} 40. Rf2 {[%clk
0:00:13.2]} 40... g4 {[%clk 0:00:03.8]} 41. Nd2 {[%clk 0:00:07.3]} 41... g3
{[%clk 0:00:04.2]} 42. hxg3+ {[%clk 0:00:07.9]} 42... fxg3 {[%clk 0:00:04.6]}
43. Rg2 {[%clk 0:00:06.4]} 43... h5 {[%clk 0:00:05.1]} 44. f4 {[%clk 0:00:05.4]}
44... Kh3 {[%clk 0:00:03.8]} 45. Nf1 {[%clk 0:00:04.9]} 45... Re4 {[%clk
0:00:02.7]} 46. Rxg3+ {[%clk 0:00:03.8]} 46... Kh4 {[%clk 0:00:03.3]} 47. f5
{[%clk 0:00:02.9]} 47... Rf4 {[%clk 0:00:03.3]} 48. Rg2 {[%clk 0:00:02.8]} 48...
Rxf5 {[%clk 0:00:03.5]} 49. Rh2+ {[%clk 0:00:02.8]} 49... Kg5 {[%clk 0:00:02.9]}
50. Rg2+ {[%clk 0:00:03.7]} 50... Kf6 {[%clk 0:00:03.1]} 51. Ne3 {[%clk
0:00:04.2]} 51... Rg5 {[%clk 0:00:03.6]} 52. Rxg5 {[%clk 0:00:03.5]} 52... Kxg5
{[%clk 0:00:04.5]} 53. Ng2 {[%clk 0:00:04.2]} 53... h4 {[%clk 0:00:05.2]} 54.
Nxh4 {[%clk 0:00:04.1]} 1/2-1/2

[Event "Early-Titled-Tuesday-Blitz-January-30-2024"]
[Site "Chess.com"]
[Date "2024.01.30"]
[Round "5"]
[White "Lady_Nika"]
[Black "pedro_gines"]
[Result "1-0"]
[WhiteElo "2580"]
[BlackElo "2771"]
[TimeControl "180+1"]
[EndTime "8:58:45 PST"]
[Termination "Lady_Nika won on time"]

1. d4 {[%clk 0:03:00.9]} 1... d5 {[%clk 0:02:53]} 2. e3 {[%clk 0:03:00.9]} 2...
Nf6 {[%clk 0:02:50]} 3. f4 {[%clk 0:03:00.9]} 3... Bf5 {[%clk 0:02:49]} 4. Nf3
{[%clk 0:03:00.6]} 4... e6 {[%clk 0:02:48.9]} 5. c3 {[%clk 0:03:00.7]} 5... Bd6
{[%clk 0:02:32.9]} 6. Bd3 {[%clk 0:03:00.5]} 6... O-O {[%clk 0:02:32.3]} 7. O-O
{[%clk 0:02:59.8]} 7... Nc6 {[%clk 0:02:32.2]} 8. Qc2 {[%clk 0:02:59.6]} 8...
Ne7 {[%clk 0:02:31.9]} 9. Nbd2 {[%clk 0:02:59.2]} 9... c5 {[%clk 0:02:28.2]} 10.
Ne5 {[%clk 0:02:56.5]} 10... c4 {[%clk 0:02:13.8]} 11. Bxf5 {[%clk 0:02:55.1]}
11... exf5 {[%clk 0:02:14.7]} 12. b3 {[%clk 0:02:51.3]} 12... b5 {[%clk
0:02:13.6]} 13. a4 {[%clk 0:02:49.4]} 13... a6 {[%clk 0:02:13.8]} 14. b4 {[%clk
0:02:48.5]} 14... a5 {[%clk 0:01:59.8]} 15. Ba3 {[%clk 0:02:34.3]} 15... axb4
{[%clk 0:01:32]} 16. Bxb4 {[%clk 0:02:33.8]} 16... Bxb4 {[%clk 0:01:32]} 17.
cxb4 {[%clk 0:02:33.7]} 17... Qd6 {[%clk 0:01:17.3]} 18. axb5 {[%clk 0:02:30.7]}
18... Qxb4 {[%clk 0:01:16.9]} 19. Rab1 {[%clk 0:02:25.2]} 19... Qa3 {[%clk
0:01:13.4]} 20. Rfe1 {[%clk 0:02:16.6]} 20... Rfb8 {[%clk 0:01:05.7]} 21. Nf1
{[%clk 0:02:10.1]} 21... Ne4 {[%clk 0:00:56.7]} 22. b6 {[%clk 0:01:53.6]} 22...
Qa6 {[%clk 0:00:39.5]} 23. Nd7 {[%clk 0:01:46.8]} 23... Rd8 {[%clk 0:00:31.7]}
24. b7 {[%clk 0:01:41.3]} 24... Rab8 {[%clk 0:00:28.8]} 25. Nxb8 {[%clk
0:01:17.1]} 25... Rxb8 {[%clk 0:00:29.7]} 26. Ra1 {[%clk 0:01:15.9]} 26... Qxb7
{[%clk 0:00:25.6]} 27. Reb1 {[%clk 0:01:16.1]} 27... Qc8 {[%clk 0:00:23.9]} 28.
Rxb8 {[%clk 0:01:15]} 28... Qxb8 {[%clk 0:00:24.8]} 29. Qa4 {[%clk 0:01:14.5]}
29... g6 {[%clk 0:00:18.3]} 30. Qd7 {[%clk 0:01:13.4]} 30... Kf8 {[%clk
0:00:12.4]} 31. Ra7 {[%clk 0:01:12.4]} 31... Qe8 {[%clk 0:00:12.7]} 32. Qb7
{[%clk 0:01:11.3]} 32... Nd6 {[%clk 0:00:11.7]} 33. Qb4 {[%clk 0:01:10.3]} 33...
Nec8 {[%clk 0:00:11.1]} 34. Ra8 {[%clk 0:01:08.5]} 34... Kg7 {[%clk 0:00:09.5]}
35. Qc5 {[%clk 0:01:03.4]} 35... Qe6 {[%clk 0:00:07.8]} 36. Ra6 {[%clk
0:01:01.6]} 36... h5 {[%clk 0:00:05.1]} 37. Rc6 {[%clk 0:01:00.5]} 37... h4
{[%clk 0:00:04.7]} 38. Ra6 {[%clk 0:00:52.5]} 38... Kh7 {[%clk 0:00:04.5]} 39.
Ra5 {[%clk 0:00:51.3]} 39... Ne7 {[%clk 0:00:02.9]} 40. Ra6 {[%clk 0:00:50.5]}
40... Nec8 {[%clk 0:00:03.6]} 41. Qa3 {[%clk 0:00:39.3]} 41... Kg7 {[%clk
0:00:03.5]} 42. h3 {[%clk 0:00:39.5]} 42... Kh7 {[%clk 0:00:03.5]} 43. Nh2
{[%clk 0:00:39.8]} 43... Qd7 {[%clk 0:00:02.8]} 44. Nf3 {[%clk 0:00:39.7]} 44...
Ne4 {[%clk 0:00:03.2]} 45. Ne5 {[%clk 0:00:37.4]} 45... Qe8 {[%clk 0:00:02.4]}
46. Ra8 {[%clk 0:00:36.8]} 46... Qe6 {[%clk 0:00:01.8]} 47. Qf8 {[%clk
0:00:35.4]} 47... Ned6 {[%clk 0:00:02.5]} 48. Ra6 {[%clk 0:00:30.3]} 48... c3
{[%clk 0:00:02.6]} 49. Rc6 {[%clk 0:00:30.2]} 49... Qe7 {[%clk 0:00:01.7]} 50.
Qxe7 {[%clk 0:00:29.5]} 50... Nxe7 {[%clk 0:00:02.6]} 51. Rxc3 {[%clk
0:00:29.9]} 51... Ne4 {[%clk 0:00:02.7]} 52. Rc7 {[%clk 0:00:29.9]} 52... Ng8
{[%clk 0:00:03.1]} 53. Rxf7+ {[%clk 0:00:29.9]} 53... Kh6 {[%clk 0:00:03.8]} 54.
Rd7 {[%clk 0:00:29.6]} 54... Ngf6 {[%clk 0:00:04.2]} 55. Rd6 {[%clk 0:00:29.5]}
55... Kh5 {[%clk 0:00:01.9]} 56. Rd8 {[%clk 0:00:28.8]} 56... Kh6 {[%clk
0:00:02]} 57. Nf7+ {[%clk 0:00:28.5]} 57... Kg7 {[%clk 0:00:02.4]} 58. Ne5
{[%clk 0:00:23.3]} 58... Kh6 {[%clk 0:00:02.5]} 59. Nf3 {[%clk 0:00:20.8]} 1-0